fUST/lending_fUST_20240302
["ID","MTS","AMOUNT","RATE_DAILY","PERIOD"]
[316045246,1709335839437,-2698.82257452,0.00020866,2]
[316045247,1709335839446,-630.20327938,0.00020866,2]
[316045248,1709335839455,-30573.17606135,0.00020866,3]
[316045250,1709335839464,-188.72081176,0.00020873,2]
[316045251,1709335839474,-8234.00193465,0.00020994,2]
[316045252,1709335839482,-690.81,0.00020994,2]
[316045253,1709335839491,-1257.44,0.00020995,2]
[316045254,1709335839502,-500.0,0.00020995,2]
[316045255,1709335839511,-3534.52,0.00020995,2]
[316045256,1709335839521,-1231.94,0.00020995,2]
[316045257,1709335839530,-500.0,0.00020995,2]
[316045258,1709335839539,-950.29,0.00020995,2]
[316045259,1709335839549,-698.11,0.00020995,2]
[316045260,1709335839558,-500.0,0.00020995,2]
[316045261,1709335839567,-836.94,0.00020995,2]
[316045262,1709335839577,-2612.3284,0.00021162,7]
[316045263,1709335839587,-166.666666,0.00021422,2]
[316045264,1709335839596,-620.76991984,0.00021812,2]
[316045265,1709335839605,-500.0,0.00021896,2]
[316045266,1709335839615,-500.0,0.00021896,2]
[316045267,1709335839623,-480.33059787,0.00021896,2]
[316045268,1709335839632,-500.0,0.00021896,2]
[316045269,1709335839642,-500.0,0.00021896,2]
[316045270,1709335839651,-500.0,0.00021896,2]
[316045271,1709335839660,-494.85355284,0.00021896,2]
[316045272,1709335839670,-500.0,0.00021896,2]
[316045273,1709335839679,-500.0,0.00021896,2]
[316045274,1709335839688,-500.0,0.00021896,2]
[316045275,1709335839698,-500.0,0.00021896,2]
[316045276,1709335839708,-386.34,0.00021896,2]
[316045277,1709335839717,-500.0,0.00021896,2]
[316045278,1709335839727,-500.0,0.00021896,2]
[316045279,1709335839736,-500.0,0.00021896,2]
[316045280,1709335839748,-400.24472666,0.00021918,2]
[316045281,1709335839759,-157.14741337,0.00022326,2]
[316045282,1709335839771,-327.22275751,0.00022327,2]
[316045283,1709335839781,-1724.21211612,0.00022328,2]
[316045284,1709335839791,-620.03849599,0.00022902,2]
[316045285,1709335839801,-272.22,0.00023,7]
[316045286,1709335839811,-311.30478508,0.00023,3]
[316045287,1709335839821,-2788.91634066,0.00023,2]
[316045288,1709335839830,-225.036,0.0002304,4]
[316045289,1709335839840,-225.036,0.0002304,4]
[316045291,1709335839850,-225.037,0.0002304,4]
[316045293,1709335839859,-225.036,0.0002304,4]
[316045295,1709335839869,-225.036,0.0002304,4]
[316045297,1709335839878,-517.29,0.00023074,2]
[316045298,1709335839887,-399.38338015,0.00023074,2]
[316045300,1709335839897,-698.11,0.00023074,2]
[316045302,1709335839907,-836.94,0.00023074,2]
[316045304,1709335839916,-500.0,0.00023075,2]
[316045306,1709335839926,-500.0,0.00023075,2]
[316045308,1709335839935,-500.0,0.00023075,2]
[316045309,1709335839945,-500.0,0.00023075,2]
[316045311,1709335839955,-500.0,0.00023075,2]
[316045313,1709335839965,-500.0,0.00023075,2]
[316045317,1709335840057,-869.16,0.00023075,2]
[316045318,1709335840066,-500.0,0.00023075,2]
[316045319,1709335840076,-698.11,0.00023454,2]
[316045320,1709335840085,-836.94,0.00023454,2]
[316045321,1709335840094,-698.11,0.00023514,2]
[316045322,1709335840103,-836.94,0.00023514,2]
[316045323,1709335840112,-690.81,0.00023514,2]
[316045324,1709335840122,-50000.0,0.00023515,5]
[316045325,1709335840131,-821.32,0.0002352,4]
[316045326,1709335840141,-821.321,0.0002352,4]
[316045327,1709335840150,-821.321,0.0002352,4]
[316045328,1709335840159,-821.321,0.0002352,4]
[316045329,1709335840169,-821.321,0.0002352,4]
[316045330,1709335840178,-153.0,0.00023808,2]
[316045331,1709335840188,-234.5338,0.00023879,2]
[316045332,1709335840198,-776.50846272,0.00023894,2]
[316045333,1709335840208,-776.50846264,0.00023895,2]
[316045334,1709335840220,-776.50846264,0.00023895,2]
[316045335,1709335840230,-776.50846264,0.00023896,2]
[316045336,1709335840240,-776.50846264,0.00023897,2]
[316045337,1709335840253,-776.50846264,0.00023897,2]
[316045338,1709335840262,-1257.44,0.00023898,2]
[316045339,1709335840272,-3534.52,0.00023898,2]
[316045340,1709335840281,-1231.94,0.00023898,2]
[316045341,1709335840291,-776.50846264,0.00023898,2]
[316045343,1709335840300,-950.29,0.00023898,2]
[316045344,1709335840311,-776.50846264,0.00023899,2]
[316045345,1709335840321,-500.0,0.00023899,2]
[316045346,1709335840330,-500.0,0.00023899,2]
[316045347,1709335840339,-194.86615274,0.00023899,2]
[316045348,1709335840349,-1257.44,0.00023899,2]
[316045349,1709335840359,-1257.44,0.00023899,2]
[316045350,1709335840368,-8336.12,0.00023899,2]
[316045351,1709335840378,-8336.12,0.00023899,2]
[316045352,1709335840388,-8336.12,0.00023899,2]
[316045353,1709335840397,-3534.52,0.00023899,2]
[316045354,1709335840406,-3534.52,0.00023899,2]
[316045355,1709335840415,-1187.61,0.00023899,2]
[316045356,1709335840424,-1187.61,0.00023899,2]
[316045357,1709335840433,-1187.61,0.00023899,2]
[316045358,1709335840443,-1187.61,0.00023899,2]
[316045359,1709335840452,-1187.61,0.00023899,2]
[316045360,1709335840462,-1187.61,0.00023899,2]
[316045361,1709335840471,-1231.94,0.00023899,2]
[316045362,1709335840480,-1231.94,0.00023899,2]
[316045363,1709335840489,-500.0,0.00023899,2]
[316045364,1709335840500,-500.0,0.00023899,2]
[316045365,1709335840509,-500.0,0.00023899,2]
[316045366,1709335840519,-500.0,0.00023899,2]
[316045367,1709335840528,-336.95,0.00023899,2]
[316045368,1709335840537,-500.0,0.00023899,2]
[316045369,1709335840546,-500.0,0.00023899,2]
[316045370,1709335840556,-500.0,0.00023899,2]
[316045371,1709335840564,-950.29,0.00023899,2]
[316045372,1709335840573,-950.29,0.00023899,2]
[316045373,1709335840582,-698.11,0.00023899,2]
[316045374,1709335840591,-698.11,0.00023899,2]
[316045375,1709335840600,-698.11,0.00023899,2]
[316045376,1709335840609,-500.0,0.00023899,2]
[316045377,1709335840618,-500.0,0.00023899,2]
[316045378,1709335840627,-500.0,0.00023899,2]
[316045379,1709335840635,-869.16,0.00023899,2]
[316045380,1709335840644,-869.16,0.00023899,2]
[316045381,1709335840653,-869.16,0.00023899,2]
[316045382,1709335840663,-836.94,0.00023899,2]
[316045383,1709335840672,-836.94,0.00023899,2]
[316045384,1709335840681,-836.94,0.00023899,2]
[316045385,1709335840690,-420.57,0.00023899,2]
[316045386,1709335840699,-500.0,0.00023899,2]
[316045387,1709335840709,-776.50846264,0.00023899,2]
[316045388,1709335840718,-1057.37395716,0.000239,3]
[316045389,1709335840727,-118696.88311872,0.000239,2]
[316045390,1709335840736,-776.50846264,0.000239,2]
[316045391,1709335840746,-2084.44982331,0.000239,2]
[316045392,1709335840755,-5317.61142016,0.0002393,5]
[316045393,1709335840764,-1000.0,0.00023932,2]
[316045394,1709335840774,-1183.7982901,0.00023935,5]
[316045395,1709335840783,-698.11,0.00023944,2]
[316045396,1709335840793,-836.94,0.00023944,2]
[316045397,1709335840802,-153.0,0.00023945,2]
[316045398,1709335840811,-200.7008514,0.00023945,2]
[316045399,1709335840820,-153.0,0.00023945,2]
[316045400,1709335840829,-306.0,0.00023945,2]
[316045401,1709335840838,-440.6731672,0.00023945,2]
[316045402,1709335840847,-257.4123915,0.00023945,2]
[316045403,1709335840857,-306.0,0.00023945,2]
[316045404,1709335840866,-153.0,0.00023945,2]
[316045405,1709335840876,-200.7008514,0.00023945,2]
[316045407,1709335840885,-153.0,0.00023945,2]
[316045408,1709335840894,-153.0,0.00023945,2]
[316045409,1709335840903,-200.7008514,0.00023945,2]
[316045410,1709335840912,-401.2036365,0.00023945,2]
[316045412,1709335840921,-153.0,0.00023945,2]
[316045413,1709335840931,-153.0,0.00023945,2]
[316045414,1709335840940,-306.0,0.00023945,2]
[316045416,1709335840949,-200.7008514,0.00023945,2]
[316045418,1709335840958,-202.243666,0.00023945,2]
[316045420,1709335840966,-153.0,0.00023945,2]
[316045421,1709335840975,-153.0,0.00023945,2]
[316045422,1709335840984,-200.7008514,0.00023945,2]
[316045424,1709335840993,-153.0,0.00023945,2]
[316045426,1709335841003,-200.7008514,0.00023945,2]
[316045428,1709335841012,-153.0,0.00023945,2]
[316045430,1709335841021,-200.7008514,0.00023945,2]
[316045432,1709335841030,-153.0,0.00023945,2]
[316045433,1709335841040,-200.7008514,0.00023945,2]
[316045434,1709335841050,-200.7008514,0.00023945,2]
[316045437,1709335841059,-153.0,0.00023945,2]
[316045438,1709335841069,-153.0,0.00023945,2]
[316045440,1709335841078,-401.4017028,0.00023945,2]
[316045442,1709335841088,-153.0,0.00023945,2]
[316045444,1709335841098,-1000.0,0.00023947,2]
[316045446,1709335841107,-578.40279666,0.00023952,2]
[316045448,1709335841116,-1000.0,0.00023973,2]
[316045450,1709335841124,-300.0,0.00023977,2]
[316045452,1709335841134,-1257.44,0.00023994,2]
[316045454,1709335841142,-3534.52,0.00023994,2]
[316045456,1709335841152,-1231.94,0.00023994,2]
[316045458,1709335841161,-950.29,0.00023994,2]
[316045460,1709335841171,-500.0,0.00023996,2]
[316045462,1709335841180,-500.0,0.00023996,2]
[316045464,1709335841190,-500.0,0.00023996,2]
[316045466,1709335841199,-869.16,0.00023996,2]
[316045467,1709335841208,-1257.44,0.00023997,2]
[316045468,1709335841220,-3534.52,0.00023997,2]
[316045469,1709335841230,-1231.94,0.00023997,2]
[316045470,1709335841239,-500.0,0.00023997,2]
[316045472,1709335841248,-500.0,0.00023997,2]
[316045473,1709335841258,-500.0,0.00023997,2]
[316045474,1709335841267,-500.0,0.00023997,2]
[316045475,1709335841276,-950.29,0.00023997,2]
[316045476,1709335841286,-698.11,0.00023997,2]
[316045478,1709335841296,-698.11,0.00023997,2]
[316045479,1709335841306,-698.11,0.00023997,2]
[316045480,1709335841315,-500.0,0.00023997,2]
[316045481,1709335841324,-500.0,0.00023997,2]
[316045482,1709335841333,-869.16,0.00023997,2]
[316045483,1709335841342,-869.16,0.00023997,2]
[316045484,1709335841352,-836.94,0.00023997,2]
[316045485,1709335841361,-836.94,0.00023997,2]
[316045486,1709335841371,-836.94,0.00023997,2]
[316045487,1709335841380,-210.65214833,0.00023998,2]
[316045488,1709335841389,-256.94258623,0.00023998,2]
[316045489,1709335841398,-214.38200257,0.00023998,2]
[316045491,1709335841408,-20840.03860396,0.00023998,2]
[316045493,1709335841418,-200.85706016,0.00023998,2]
[316045495,1709335841428,-324.72973504,0.00023998,2]
[316045497,1709335841437,-224.33420636,0.00023998,2]
[316045499,1709335841446,-282.52764566,0.00023998,2]
[316045501,1709335841455,-285.52119037,0.00023998,2]
[316045503,1709335841465,-162.11854936,0.00023998,2]
[316045505,1709335841473,-300.22703876,0.00023998,2]
[316045507,1709335841486,-206.11586222,0.00023998,2]
[316045509,1709335841497,-371.14057692,0.00023998,2]
[316045511,1709335841506,-201.7351925,0.00023998,2]
[316045513,1709335841516,-300.89577802,0.00023998,2]
[316045515,1709335841525,-200.01171087,0.00023998,2]
[316045517,1709335841534,-11178.30135023,0.00023998,2]
[316045519,1709335841543,-263.31692282,0.00023998,2]
[316045522,1709335841554,-300.2820096,0.00023998,2]
[316045525,1709335841563,-262.13577343,0.00023998,2]
[316045528,1709335841573,-155.25921865,0.00023998,2]
[316045531,1709335841582,-155.22494037,0.00023998,2]
[316045534,1709335841591,-185.40185691,0.00023998,2]
[316045537,1709335841600,-200.0,0.00023998,2]
[316045540,1709335841609,-387.63160275,0.00023998,2]
[316045542,1709335841618,-478.73760126,0.00023998,2]
[316045544,1709335841627,-155.08219356,0.00023998,2]
[316045546,1709335841636,-295.87885382,0.00023998,2]
[316045548,1709335841645,-160.40689308,0.00023998,2]
[316045550,1709335841655,-155.07133281,0.00023998,2]
[316045552,1709335841665,-282.54840723,0.00023998,2]
[316045554,1709335841674,-280.37029672,0.00023998,2]
[316045556,1709335841683,-181.85299433,0.00023998,2]
[316045558,1709335841692,-260.50442355,0.00023998,2]
[316045560,1709335841702,-562.47634038,0.00023998,2]
[316045562,1709335841711,-298.61808289,0.00023998,2]
[316045564,1709335841719,-200.54373759,0.00023998,2]
[316045566,1709335841729,-263.21964131,0.00023998,7]
[316045568,1709335841738,-155.11478494,0.00023998,2]
[316045570,1709335841747,-219.95258249,0.00023998,2]
[316045572,1709335841757,-400.0,0.00023998,2]
[316045574,1709335841765,-159.87982714,0.00023998,2]
[316045576,1709335841774,-348.94251627,0.00023998,2]
[316045578,1709335841784,-267.21087934,0.00023998,2]
[316045580,1709335841793,-812.22817838,0.00023998,2]
[316045582,1709335841802,-173.93222042,0.00023998,2]
[316045584,1709335841811,-160.8702495,0.00023998,2]
[316045586,1709335841821,-508.95946117,0.00023998,2]
[316045588,1709335841831,-197.5903061,0.00023998,2]
[316045590,1709335841840,-158.82433248,0.00023998,2]
[316045592,1709335841849,-176.94616105,0.00023998,2]
[316045594,1709335841858,-441.36557175,0.00023998,2]
[316045596,1709335841867,-523.71030091,0.00023998,3]
[316045598,1709335841876,-1992.97014433,0.00023998,2]
[316045600,1709335841885,-1654.30348637,0.00023998,2]
[316045602,1709335841894,-298.82206259,0.00023998,2]
[316045604,1709335841903,-202.60745563,0.00023998,2]
[316045606,1709335841912,-198.32516916,0.00023998,2]
[316045608,1709335841921,-10098.67327328,0.00023998,2]
[316045610,1709335841930,-200.08769918,0.00023998,2]
[316045612,1709335841939,-1405.80312036,0.00023998,2]
[316045614,1709335841948,-429.41243131,0.00023998,2]
[316045616,1709335841957,-179.22431201,0.00023998,2]
[316045618,1709335841966,-595.5942201,0.00023998,2]
[316045620,1709335841975,-508.84911227,0.00023998,2]
[316045621,1709335841985,-205.9203372,0.00023998,2]
[316045624,1709335841994,-198.6077684,0.00023998,2]
[316045625,1709335842004,-207.97712337,0.00023998,2]
[316045627,1709335842013,-155.2833993,0.00023998,2]
[316045629,1709335842023,-205.34317386,0.00023998,2]
[316045631,1709335842032,-169.08281547,0.00023998,2]
[316045633,1709335842041,-211.29666627,0.00023998,2]
[316045635,1709335842050,-192.42679543,0.00023998,2]
[316045637,1709335842059,-1171.69564882,0.00023998,2]
[316045639,1709335842069,-237.55164317,0.00023998,2]
[316045641,1709335842078,-240.49886462,0.00023998,2]
[316045643,1709335842087,-247.69144409,0.00023998,2]
[316045645,1709335842096,-500.0,0.00023998,2]
[316045647,1709335842105,-500.0,0.00023998,2]
[316045649,1709335842114,-698.11,0.00023998,2]
[316045651,1709335842123,-698.11,0.00023998,2]
[316045653,1709335842132,-500.82,0.00023998,2]
[316045655,1709335842141,-869.16,0.00023998,2]
[316045657,1709335842149,-836.94,0.00023998,2]
[316045659,1709335842158,-836.94,0.00023998,2]
[316045661,1709335842167,-886.02709678,0.00023999,2]
[316045663,1709335842176,-500.0,0.00023999,2]
[316045665,1709335842185,-500.0,0.00023999,2]
[316045667,1709335842194,-229.901256,0.00023999,2]
[316045669,1709335842203,-556.67109342,0.00023999,2]
[316045671,1709335842214,-500.0,0.00023999,2]
[316045673,1709335842224,-188.32128173,0.00023999,2]
[316045675,1709335842233,-500.0,0.00023999,2]
[316045677,1709335842242,-500.0,0.00023999,2]
[316045687,1709335842321,-1257.44,0.00023999,2]
[316045689,1709335842339,-1257.44,0.00023999,2]
[316045691,1709335842349,-1257.44,0.00023999,2]
[316045693,1709335842359,-1257.44,0.00023999,2]
[316045695,1709335842368,-1257.44,0.00023999,2]
[316045697,1709335842377,-1257.44,0.00023999,2]
[316045699,1709335842400,-1257.44,0.00023999,2]
[316045701,1709335842410,-1257.44,0.00023999,2]
[316045704,1709335842420,-1257.44,0.00023999,2]
[316045706,1709335842429,-1257.44,0.00023999,2]
[316045708,1709335842439,-1257.44,0.00023999,2]
[316045709,1709335842448,-1257.44,0.00023999,2]
[316045711,1709335842457,-1257.44,0.00023999,2]
[316045713,1709335842467,-1257.44,0.00023999,2]
[316045716,1709335842477,-1257.44,0.00023999,2]
[316045718,1709335842487,-1257.44,0.00023999,2]
[316045720,1709335842496,-1257.50499399,0.00023999,2]
[316045721,1709335842505,-8336.12,0.00023999,2]
[316045723,1709335842514,-8336.12,0.00023999,2]
[316045725,1709335842523,-8336.12,0.00023999,2]
[316045727,1709335842533,-8336.12,0.00023999,2]
[316045729,1709335842542,-8336.12,0.00023999,2]
[316045731,1709335842551,-8336.12,0.00023999,2]
[316045733,1709335842559,-8336.12,0.00023999,2]
[316045735,1709335842568,-8336.12,0.00023999,2]
[316045737,1709335842577,-8336.12,0.00023999,2]
[316045739,1709335842587,-8336.12,0.00023999,2]
[316045741,1709335842596,-8336.12,0.00023999,2]
[316045743,1709335842605,-8336.12,0.00023999,2]
[316045745,1709335842613,-8336.12,0.00023999,2]
[316045747,1709335842623,-8336.12,0.00023999,2]
[316045749,1709335842632,-8336.12,0.00023999,2]
[316045751,1709335842641,-8336.12,0.00023999,2]
[316045753,1709335842650,-8336.12,0.00023999,2]
[316045755,1709335842660,-8336.12,0.00023999,2]
[316045757,1709335842669,-8336.12,0.00023999,2]
[316045759,1709335842678,-8336.12,0.00023999,2]
[316045761,1709335842687,-8336.35574546,0.00023999,2]
[316045763,1709335842696,-3534.52,0.00023999,2]
[316045765,1709335842705,-3534.52,0.00023999,2]
[316045767,1709335842715,-3534.52,0.00023999,2]
[316045769,1709335842724,-3534.52,0.00023999,2]
[316045771,1709335842733,-3534.52,0.00023999,2]
[316045773,1709335842742,-3534.52,0.00023999,2]
[316045775,1709335842752,-3534.52,0.00023999,2]
[316045777,1709335842761,-3534.52,0.00023999,2]
[316045779,1709335842772,-3534.52,0.00023999,2]
[316045781,1709335842781,-3534.52,0.00023999,2]
[316045783,1709335842790,-3534.52,0.00023999,2]
[316045785,1709335842799,-3534.52,0.00023999,2]
[316045788,1709335842808,-3534.52,0.00023999,2]
[316045790,1709335842818,-3534.52,0.00023999,2]
[316045792,1709335842827,-3534.52,0.00023999,2]
[316045794,1709335842836,-3534.52,0.00023999,2]
[316045796,1709335842845,-3534.60003786,0.00023999,2]
[316045798,1709335842855,-1231.94,0.00023999,2]
[316045800,1709335842863,-1231.94,0.00023999,2]
[316045802,1709335842873,-1231.94,0.00023999,2]
[316045804,1709335842882,-1231.94,0.00023999,2]
[316045806,1709335842892,-1231.94,0.00023999,2]
[316045808,1709335842901,-1231.94,0.00023999,2]
[316045810,1709335842910,-1231.94,0.00023999,2]
[316045812,1709335842919,-1231.94,0.00023999,2]
[316045815,1709335842929,-1231.94,0.00023999,2]
[316045817,1709335842938,-1231.94,0.00023999,2]
[316045820,1709335842948,-1231.94,0.00023999,2]
[316045822,1709335842956,-1231.94,0.00023999,2]
[316045824,1709335842966,-1231.94,0.00023999,2]
[316045825,1709335842976,-1231.94,0.00023999,2]
[316045826,1709335842985,-1231.94,0.00023999,2]
[316045827,1709335842993,-1231.94,0.00023999,2]
[316045828,1709335843002,-1232.06613509,0.00023999,2]
[316045829,1709335843011,-500.0,0.00023999,2]
[316045830,1709335843020,-500.0,0.00023999,2]
[316045832,1709335843029,-500.0,0.00023999,2]
[316045835,1709335843038,-500.0,0.00023999,2]
[316045837,1709335843047,-500.0,0.00023999,2]
[316045839,1709335843056,-500.0,0.00023999,2]
[316045841,1709335843066,-500.0,0.00023999,2]
[316045843,1709335843075,-500.0,0.00023999,2]
[316045845,1709335843084,-500.0,0.00023999,2]
[316045847,1709335843093,-500.0,0.00023999,2]
[316045849,1709335843102,-500.0,0.00023999,2]
[316045851,1709335843112,-417.8210066,0.00023999,2]
[316045853,1709335843120,-500.0,0.00023999,2]
[316045855,1709335843129,-500.0,0.00023999,2]
[316045857,1709335843138,-500.0,0.00023999,2]
[316045859,1709335843147,-500.0,0.00023999,2]
[316045861,1709335843156,-500.0,0.00023999,2]
[316045863,1709335843165,-500.0,0.00023999,2]
[316045865,1709335843174,-500.0,0.00023999,2]
[316045867,1709335843183,-500.0,0.00023999,2]
[316045869,1709335843192,-500.0,0.00023999,2]
[316045871,1709335843201,-500.0,0.00023999,2]
[316045873,1709335843211,-500.0,0.00023999,2]
[316045875,1709335843224,-462.58,0.00023999,2]
[316045877,1709335843233,-950.29,0.00023999,2]
[316045879,1709335843242,-950.29,0.00023999,2]
[316045881,1709335843251,-950.29,0.00023999,2]
[316045883,1709335843260,-950.29,0.00023999,2]
[316045884,1709335843269,-950.29,0.00023999,2]
[316045885,1709335843279,-950.29,0.00023999,2]
[316045888,1709335843289,-950.29,0.00023999,2]
[316045890,1709335843301,-950.29,0.00023999,2]
[316045893,1709335843311,-950.29,0.00023999,2]
[316045896,1709335843320,-950.29,0.00023999,2]
[316045899,1709335843330,-950.29,0.00023999,2]
[316045902,1709335843339,-950.29,0.00023999,2]
[316045905,1709335843349,-950.29,0.00023999,2]
[316045911,1709335843358,-950.29,0.00023999,2]
[316045916,1709335843367,-950.29,0.00023999,2]
[316045921,1709335843376,-950.29,0.00023999,2]
[316045926,1709335843387,-950.44711065,0.00023999,2]
[316045930,1709335843396,-698.11,0.00023999,2]
[316045934,1709335843405,-698.11,0.00023999,2]
[316045938,1709335843415,-698.11,0.00023999,2]
[316045941,1709335843423,-698.11,0.00023999,2]
[316045945,1709335843433,-698.11,0.00023999,2]
[316045949,1709335843442,-698.11,0.00023999,2]
[316045952,1709335843452,-698.11,0.00023999,2]
[316045954,1709335843461,-698.25005205,0.00023999,2]
[316045956,1709335843470,-869.16,0.00023999,2]
[316045957,1709335843479,-869.16,0.00023999,2]
[316045959,1709335843487,-869.16,0.00023999,2]
[316045962,1709335843496,-869.16,0.00023999,2]
[316045965,1709335843506,-869.16,0.00023999,2]
[316045968,1709335843514,-869.16,0.00023999,2]
[316045971,1709335843524,-869.16,0.00023999,2]
[316045974,1709335843533,-869.16,0.00023999,2]
[316045977,1709335843542,-869.16,0.00023999,2]
[316045979,1709335843552,-869.16,0.00023999,2]
[316045981,1709335843561,-869.16,0.00023999,2]
[316045983,1709335843571,-869.16,0.00023999,2]
[316045985,1709335843580,-869.16,0.00023999,2]
[316045987,1709335843590,-869.20245189,0.00023999,2]
[316045989,1709335843599,-836.94,0.00023999,2]
[316045991,1709335843608,-836.94,0.00023999,2]
[316045993,1709335843617,-836.94,0.00023999,2]
[316045995,1709335843626,-836.94,0.00023999,2]
[316045997,1709335843635,-836.94,0.00023999,2]
[316045999,1709335843644,-836.94,0.00023999,2]
[316046001,1709335843653,-836.94,0.00023999,2]
[316046003,1709335843663,-836.96,0.00023999,2]
[316046005,1709335843672,-99644.58414856,0.00024,5]
[316046008,1709335843693,-4885.36552173,0.00024,5]
[316046023,1709335843794,-16346.1122249,0.00019287,2]
[316046025,1709335843804,-690.81,0.00023514,2]
[316046027,1709335843813,-690.81,0.00023898,2]
[316046029,1709335843822,-690.81,0.00023899,2]
[316046031,1709335843831,-690.81,0.00023899,2]
[316046033,1709335843840,-690.81,0.00023899,2]
[316046035,1709335843849,-690.81,0.00023934,2]
[316046037,1709335843858,-690.81,0.00023997,2]
[316046039,1709335843867,-690.81,0.00023997,2]
[316046041,1709335843876,-690.81,0.00023998,2]
[316046043,1709335843885,-76990.76520664,0.00024,5]
[316046051,1709335843946,-500.0,0.00020547,2]
[316046053,1709335843956,-690.81,0.00023998,2]
[316046055,1709335843965,-690.81,0.00023998,2]
[316046057,1709335843975,-690.81,0.00023998,2]
[316046059,1709335843984,-690.81,0.00023998,2]
[316046061,1709335843992,-690.81,0.00023998,2]
[316046063,1709335844003,-690.81,0.00023998,2]
[316046065,1709335844012,-690.96107986,0.00023998,2]
[316046067,1709335844021,-196507.70512536,0.00024,5]
[316048230,1709337032570,-718.38016114,0.00019476,2]
[316048232,1709337032580,-316.49552992,0.00019476,2]
[316048234,1709337032590,-2111.9879456,0.00019477,2]
[316048236,1709337032599,-172.303321,0.00019489,2]
[316048238,1709337032608,-11850.1516787,0.0001977,2]
[316048240,1709337032618,-500.0,0.00020547,2]
[316048242,1709337032628,-501.38007715,0.00020547,2]
[316048244,1709337032637,-500.0,0.00020547,2]
[316048246,1709337032647,-501.71211248,0.00020547,2]
[316048248,1709337032656,-500.0,0.00020547,2]
[316048250,1709337032665,-500.0,0.00020547,2]
[316048252,1709337032674,-500.0,0.00020547,2]
[316048254,1709337032683,-500.0,0.00020547,2]
[316048256,1709337032693,-500.0,0.00020547,2]
[316048258,1709337032702,-500.0,0.00020547,2]
[316048260,1709337032711,-500.0,0.00020547,2]
[316048262,1709337032720,-500.0,0.00020547,2]
[316048264,1709337032729,-500.0,0.00020547,2]
[316048266,1709337032738,-9092.22,0.00020547,2]
[316048268,1709337032748,-500.0,0.00020547,2]
[316048270,1709337032757,-500.0,0.00020547,2]
[316048272,1709337032766,-500.74411663,0.00020547,2]
[316048274,1709337032775,-2420.95273948,0.00020753,2]
[316048276,1709337032784,-169.50945208,0.00020783,2]
[316048278,1709337032793,-1505.3,0.00020842,3]
[316048280,1709337032802,-1017.63,0.00020842,3]
[316048282,1709337032811,-500.0,0.0002085,2]
[316048284,1709337032820,-500.0,0.00020851,2]
[316048286,1709337032829,-500.0,0.00020851,2]
[316048288,1709337032838,-500.0,0.00020851,2]
[316048290,1709337032847,-500.0,0.00020851,2]
[316048292,1709337032856,-9092.22,0.00020851,2]
[316048294,1709337032865,-554.24,0.00020851,2]
[316048296,1709337032874,-500.0,0.00020851,2]
[316048298,1709337032883,-500.0,0.00020851,2]
[316048300,1709337032892,-500.0,0.00020851,2]
[316048302,1709337032901,-500.0,0.00020851,2]
[316048304,1709337032911,-500.0,0.00020851,2]
[316048306,1709337032921,-500.0,0.00020851,2]
[316048308,1709337032929,-500.0,0.00020852,2]
[316048310,1709337032938,-552.94,0.00020852,2]
[316048312,1709337032947,-500.0,0.00020852,2]
[316048314,1709337032956,-479.59749948,0.00020852,2]
[316048316,1709337032966,-500.0,0.00020852,2]